bitfinex/quotes_ETHUSD_20220103
["timestamp","ask_amount","ask_price","bid_price","bid_amount"]
[1641216009105,4.0,3827.0,3826.8,1.74821355]
[1641216009307,0.65346,3826.8,3826.6,1.31700727]
[1641216010815,0.65346,3826.8,3826.3,1.32098624]
[1641216011011,0.65347,3826.5,3826.3,1.32098624]
[1641216011209,0.65347,3826.5,3826.4,0.00341055]
[1641216017328,0.65347,3826.5,3826.2,1.29421782]
[1641216017525,1.30692,3826.5,3826.2,1.29421782]
[1641216019325,0.65345,3826.5,3826.2,1.29421782]
[1641216020452,0.65349,3826.4,3826.2,1.29421782]
[1641216022153,0.65345,3826.5,3826.2,1.29421782]
[1641216024005,0.65349,3826.4,3826.2,1.29421782]
[1641216024304,2.81618795,3826.3,3826.2,1.29421782]
[1641216024600,7.47137298,3826.3,3826.2,1.29535466]
[1641216024799,5.1,3826.2,3826.1,0.06248142]
[1641216024998,5.481,3826.2,3826.1,0.06248142]
[1641216025199,5.481,3826.2,3825.6,1.74821355]
[1641216025400,0.65367,3825.8,3825.6,1.74821355]
[1641216025602,0.65367,3825.8,3825.7,0.00284212]
[1641216026203,0.60367,3825.8,3825.7,0.00284212]
[1641216026403,0.60367,3825.8,3825.3,0.00511581]
[1641216026606,0.65366,3825.6,3825.3,0.00511581]
[1641216027456,1.30732,3825.6,3825.3,0.00511581]
[1641216027652,1.30732,3825.6,3825.2,0.00568424]
[1641216027852,0.6537,3825.4,3825.2,0.00568424]
[1641216030157,1.30739,3825.5,3825.3,2.54072506]
[1641216030558,1.30739,3825.5,3825.4,0.00454739]
[1641216031305,1.30739,3825.5,3825.4,2.54527245]
[1641216031705,1.25739,3825.5,3825.4,2.54527245]
[1641216032504,1.26766018,3825.5,3825.4,2.54527245]
[1641216042817,1.26766018,3825.5,3825.4,3.86948097]
[1641216045417,1.67228734,3825.5,3825.4,3.86948097]
[1641216048821,1.67228734,3825.5,3825.4,2.54527245]
[1641216050554,0.41489734,3825.5,3825.4,2.54527245]
[1641216050952,0.41489734,3825.5,3825.4,4.293486]
[1641216051551,0.01027018,3825.5,3825.4,4.293486]
[1641216051753,0.01027018,3825.5,3825.4,1.75276094]
[1641216052159,0.01027018,3825.5,3825.4,4.293486]
[1641216052757,0.01027018,3825.5,3825.4,1.75276094]
[1641216054215,0.41482867,3825.5,3825.4,0.00454739]
[1641216055213,0.41482867,3825.5,3825.4,2.54527245]
[1641216056916,0.41482867,3825.5,3825.4,4.293486]
[1641216057958,0.41482867,3825.5,3825.4,2.54527245]
[1641216058559,0.41482867,3825.5,3825.4,3.86817982]
[1641216059263,0.41482867,3825.5,3825.4,4.293486]
[1641216060061,0.01027018,3825.5,3825.4,4.293486]
[1641216060261,0.01027018,3825.5,3825.4,1.75276094]
[1641216060462,0.01027018,3825.5,3825.4,1.74821355]
[1641216061711,0.41481696,3825.5,3825.4,1.74821355]
[1641216062515,0.01027018,3825.5,3825.4,1.74821355]
[1641216062715,0.01027018,3825.5,3825.3,3.19426506]
[1641216063512,0.01027018,3825.5,3825.4,7.54994112]
[1641216063712,0.01027018,3825.5,3825.4,4.29994112]
[1641216066669,0.01027018,3825.5,3825.4,2.54072506]
[1641216068820,0.41420364,3825.5,3825.4,2.54072506]
[1641216070323,0.01027018,3825.5,3825.4,2.54072506]
[1641216070541,0.01027018,3825.5,3825.4,3.86203424]
[1641216072866,0.41419541,3825.5,3825.4,2.54072506]
[1641216078122,0.41419541,3825.5,3825.4,3.86203424]
[1641216078722,0.41419541,3825.5,3825.4,2.54072506]
[1641216080166,0.41419541,3825.5,3825.4,5.2995662]
[1641216080564,0.29770296,3825.5,3825.4,5.2995662]
[1641216081570,0.65349,3825.9,3825.4,5.2995662]
[1641216081773,0.65349,3825.9,3825.5,1.3069358]
[1641216081971,0.65349,3825.9,3825.6,0.65347]
[1641216082172,0.65349,3825.9,3825.6,2.41781303]
[1641216082372,0.65349,3825.9,3825.7,0.00284212]
[1641216084329,0.65349,3825.9,3825.7,1.30976462]
[1641216084629,0.65349,3825.9,3825.8,0.0022737]
[1641216085030,1.15545306,3826.1,3825.8,0.0022737]
[1641216085329,1.15545306,3826.1,3825.8,0.6557237]
[1641216085734,1.15545306,3826.1,3825.9,1.32762648]
[1641216086136,1.15545306,3826.1,3826.0,0.00113685]
[1641216086337,1.30695,3826.3,3826.0,0.00113685]
[1641216087572,1.30695,3826.3,3826.1,0.00354551]
[1641216088372,0.65346,3826.5,3826.1,0.65699721]
[1641216088674,0.00113684,3826.4,3826.1,0.65699721]
[1641216089971,0.00113684,3826.4,3826.2,1.32592121]
[1641216095867,0.00113684,3826.4,3826.3,4.62592121]
[1641216096168,0.00113684,3826.4,3826.3,1.32592121]
[1641216097069,0.00113684,3826.4,3826.1,0.65699721]
[1641216097271,0.00113684,3826.4,3826.1,2.42134024]
[1641216097474,0.00113684,3826.4,3826.2,2.85720711]
[1641216098175,0.00113684,3826.4,3826.1,0.65699721]
[1641216099627,0.00113684,3826.4,3826.2,1.3067075]
[1641216100927,0.00113684,3826.4,3826.3,5.84143286]
[1641216101127,0.00113684,3826.4,3826.3,2.64143286]
[1641216110571,0.00113684,3826.4,3826.3,5.14143286]
[1641216110972,0.00113684,3826.4,3826.3,2.64143286]
[1641216111573,0.1351831,3826.5,3826.4,3.85]
[1641216111775,0.1351831,3826.5,3826.3,3.29475856]
[1641216111976,0.105358,3826.6,3826.3,3.29475856]
[1641216112173,0.105358,3826.6,3826.3,5.71244159]
[1641216113512,0.105358,3826.6,3826.4,0.65687885]
[1641216117263,0.105358,3826.6,3826.5,1.32286822]
[1641216117668,0.10649485,3826.6,3826.5,1.32286822]
[1641216122837,0.04552105,3826.6,3826.5,1.32286822]
[1641216123435,0.04552105,3826.6,3826.4,1.97974707]
[1641216124888,0.04552105,3826.6,3825.8,2.78654623]
[1641216125085,0.04552105,3826.6,3825.7,1.76140579]
[1641216125086,0.69893105,3826.6,3825.7,1.18075343]
[1641216125288,0.69893105,3826.6,3825.9,0.00284211]
[1641216125483,0.04552105,3826.6,3825.9,0.00284211]
[1641216125684,0.04552105,3826.6,3826.2,1.3067075]
[1641216125884,0.04552105,3826.6,3825.9,0.00284211]
[1641216127789,0.04552105,3826.6,3825.8,0.65341]
[1641216128393,0.04552105,3826.6,3825.8,1.30681]
[1641216128645,0.65342,3826.5,3825.9,0.6534004]
[1641216129049,0.65342,3826.5,3826.0,0.00227369]
[1641216132154,0.46516573,3826.4,3826.0,2.4812591]
[1641216132590,0.46516573,3826.4,3826.1,0.00170527]
[1641216135292,0.46516573,3826.4,3826.0,0.00227369]
[1641216135488,0.46516573,3826.4,3826.2,1.32229909]
[1641216135886,0.46516573,3826.4,3826.3,1.32229909]
[1641216136536,0.46516573,3826.4,3826.3,2.47898541]
[1641216137436,0.46516573,3826.5,3826.3,2.47898541]
[1641216138438,0.46516573,3826.5,3826.4,2.47898541]
[1641216138839,0.46516573,3826.5,3826.4,2.48253072]
[1641216163985,0.42684777,3826.5,3826.4,2.48253072]
[1641216168631,3.05985433,3826.5,3826.4,2.48253072]
[1641216168836,0.42684777,3826.5,3826.4,2.48253072]
[1641216174138,0.6977742,3826.6,3826.4,0.00354531]
[1641216179004,3.31330105,3826.6,3826.4,0.00354531]
[1641216180404,2.6300895,3826.5,3826.4,0.00354531]
[1641216181238,0.6977742,3826.6,3826.4,0.00354531]
[1641216181438,2.63683629,3826.5,3826.4,0.00354531]
[1641216181841,0.6977742,3826.6,3826.4,0.00354531]
[1641216183845,2.61970868,3826.5,3826.4,0.00354531]
[1641216184245,0.6977742,3826.6,3826.4,0.00354531]
[1641216184651,0.6977742,3826.6,3826.5,2.45316679]
[1641216185079,0.0443842,3826.6,3826.5,2.45316679]
[1641216185482,2.70190426,3826.6,3826.5,2.45316679]
[1641216185883,0.0443842,3826.6,3826.5,2.45316679]
[1641216186383,2.7162841,3826.6,3826.5,2.45316679]
[1641216186785,0.0443842,3826.6,3826.5,2.45316679]
[1641216194308,0.0443842,3826.6,3826.5,5.44805577]
[1641216194501,0.0443842,3826.6,3826.5,6.56336947]
[1641216194703,0.0443842,3826.6,3826.5,3.56848049]
[1641216194906,0.06161531,3827.0,3826.6,0.6532266]
[1641216195101,0.06161531,3827.0,3826.5,3.56848049]
[1641216195300,0.0022737,3826.8,3826.5,2.45316679]
[1641216195502,0.0022737,3826.8,3826.7,8.45323]
[1641216195702,0.06161531,3827.0,3826.7,8.45323]
[1641216196033,0.00284212,3826.9,3826.8,0.6532]
[1641216196932,0.00284212,3826.9,3826.8,8.7064]
[1641216197132,0.00284212,3826.9,3826.8,10.0127985]
[1641216197338,0.00284212,3826.9,3826.8,12.46596529]
[1641216198437,0.00284212,3826.9,3826.8,13.77557687]
[1641216199438,0.00284212,3826.9,3826.8,12.46596529]
[1641216199639,0.00284212,3826.9,3826.8,5.06596529]
[1641216199893,0.00284212,3826.9,3826.8,4.41276529]
[1641216200591,0.00284212,3826.9,3826.8,3.75956529]
[1641216201392,0.00284212,3826.9,3826.8,6.60017783]
[1641216201793,0.00284212,3826.9,3826.8,7.90872413]
[1641216202195,0.00284212,3826.9,3826.8,7.8665748]
[1641216202605,0.00284212,3826.9,3826.8,16.62905427]
[1641216202802,0.105358,3827.1,3826.9,9.25]
[1641216203001,0.105358,3827.1,3826.9,9.9030892]
[1641216203200,0.105358,3827.1,3826.9,11.2092692]
[1641216203633,0.06161461,3827.4,3826.9,14.20415818]
[1641216203836,0.06161461,3827.4,3827.0,5.2258]
[1641216204036,0.06161461,3827.4,3827.1,1.9590924]
[1641216204037,0.0022737,3827.3,3827.1,1.9590924]
[1641216204435,0.00170527,3827.2,3827.1,1.9590924]
[1641216204835,0.00170527,3827.2,3827.1,14.29110613]
[1641216205241,0.00170527,3827.2,3827.1,14.94414613]
[1641216205438,0.653,3828.5,3828.1,0.06161461]
[1641216205636,0.653,3828.5,3828.2,0.6530087]
[1641216205835,0.00682108,3828.4,3828.2,0.6530087]
[1641216206235,0.00625266,3828.3,3828.2,0.6530087]
[1641216210403,0.00625266,3828.3,3828.2,0.65655225]
[1641216228352,0.00625266,3828.3,3828.2,11.99779411]
[1641216229453,0.00625266,3828.3,3828.2,3.29779411]
[1641216230301,0.00625266,3828.3,3828.2,7.99779411]
[1641216235468,0.00625266,3828.3,3828.2,3.29779411]
[1641216236267,0.00625266,3828.3,3828.2,6.39779411]
[1641216236672,0.105359,3828.4,3828.2,7.05070411]
[1641216236869,0.105359,3828.4,3828.2,7.70361411]
[1641216237069,0.105359,3828.4,3828.2,4.60361411]
[1641216237892,0.105359,3828.4,3828.3,2.64124186]
[1641216238295,0.11218008,3828.4,3828.3,2.64124186]
[1641216240098,0.11218008,3828.4,3828.3,6.24124186]
[1641216241148,0.11218008,3828.4,3828.3,2.64124186]
[1641216259149,0.11218008,3828.4,3828.3,2.94124186]
[1641216259997,0.11218008,3828.4,3828.3,2.64124186]
[1641216267038,0.11218008,3828.4,3828.3,2.94124186]
[1641216268296,0.105359,3828.4,3828.3,2.94124186]
[1641216273047,0.105359,3828.4,3828.3,2.64124186]
[1641216277111,0.105359,3828.4,3828.2,0.65655225]
[1641216277509,0.00625266,3828.3,3828.2,0.65655225]
[1641216277711,0.23765581,3828.3,3828.2,0.65655225]
[1641216278312,0.00625266,3828.3,3828.2,0.65655225]
[1641216279149,0.23765581,3828.3,3828.2,0.65655225]
[1641216286043,0.00625266,3828.3,3828.2,0.65655225]
[1641216286945,0.23757033,3828.3,3828.2,0.65655225]
[1641216287350,0.00625266,3828.3,3828.2,0.65655225]
[1641216288455,0.23757033,3828.3,3828.2,0.65655225]
[1641216291598,0.23757033,3828.3,3828.2,0.85425225]
[1641216292605,0.00625266,3828.3,3828.2,0.85425225]
[1641216293770,0.00625266,3828.3,3828.2,4.81761458]
[1641216293771,0.23761656,3828.3,3828.2,4.81761458]
[1641216294372,0.23761656,3828.3,3828.2,3.51763323]
[1641216294373,0.00625266,3828.3,3828.2,3.51763323]
[1641216303458,0.00625266,3828.3,3828.2,4.81659687]
[1641216303862,0.00625266,3828.3,3828.2,3.51763323]
[1641216307501,0.105359,3828.4,3828.2,3.51763323]
[1641216307898,0.105359,3828.4,3828.3,1.31433943]
[1641216308299,0.11218008,3828.4,3828.3,1.51203943]
[1641216308551,0.11218008,3828.4,3828.3,0.1977]
[1641216308753,0.11218008,3828.4,3828.3,4.16038927]
[1641216309452,0.12244236,3828.4,3828.3,4.16038927]
[1641216311462,0.12244236,3828.4,3828.3,2.86108098]
[1641216312502,0.12244236,3828.4,3828.3,4.16204248]
[1641216313102,0.12244236,3828.4,3828.3,2.86108098]
[1641216313503,0.12244236,3828.4,3828.3,4.1621484]
[1641216313703,0.12244236,3828.4,3828.3,1.49876742]
[1641216314704,0.12244236,3828.4,3828.3,4.16491245]
[1641216319555,0.12244236,3828.4,3828.3,2.86384503]
[1641216319994,0.12244236,3828.4,3828.3,4.16372418]
[1641216322601,0.12244236,3828.4,3828.3,2.86384503]
[1641216326767,0.01708336,3828.4,3828.3,2.86384503]
[1641216330109,0.24772198,3828.4,3828.3,2.86384503]
[1641216331352,0.24772198,3828.4,3828.3,4.16363945]
[1641216333655,0.24772198,3828.4,3828.3,2.86384503]
[1641216336004,7.39772198,3828.4,3828.3,2.86034503]
[1641216336205,11.61695184,3828.4,3828.3,2.81484503]
[1641216336403,6.3,3828.3,3828.2,4.355e-05]
[1641216336603,9.66573724,3828.3,3828.1,1.30092732]
[1641216336803,12.23473724,3828.2,3828.1,0.93132732]
[1641216337107,12.92142148,3828.2,3827.8,0.93132732]
[1641216337303,0.65336,3828.0,3827.8,0.93132732]
[1641216337504,12.61573724,3827.9,3827.8,0.93132732]
[1641216337707,12.61971621,3827.9,3827.8,0.93132732]
[1641216337901,12.61971621,3827.9,3827.6,4.80977998]
[1641216338107,9.6966577,3827.7,3827.6,3.08373724]
[1641216338406,13.23934832,3827.7,3827.0,5.2258]
[1641216338982,0.65338,3827.3,3827.0,5.2258]
[1641216339184,2.84178176,3827.2,3827.0,5.2258]
[1641216340687,6.05338,3827.1,3827.0,5.2258]
[1641216340886,8.84573275,3827.1,3827.0,5.2258]
[1641216341087,8.84573275,3827.1,3827.0,5.22693684]
[1641216341289,3.44573275,3827.1,3827.0,5.22693684]
[1641216341487,3.44573275,3827.1,3827.0,5.2258]
[1641216342089,2.79235275,3827.1,3827.0,5.2258]
[1641216343313,3.44569275,3827.1,3827.0,5.2258]
[1641216343514,3.26927343,3827.1,3827.0,5.2258]
[1641216343716,0.65334,3827.1,3827.0,5.2258]
[1641216344112,3.75700072,3827.6,3827.0,5.2258]
[1641216344312,0.381,3827.5,3827.0,5.2258]
[1641216344514,2.98934256,3827.4,3827.1,0.6533163]
[1641216344721,2.99047941,3827.4,3827.1,0.6533163]
[1641216345622,0.65332,3827.3,3827.1,0.6533163]
[1641216345820,2.81197557,3827.2,3827.1,0.6533163]
[1641216347054,2.81197557,3827.2,3827.0,5.8791581]
[1641216347257,3.46533557,3827.2,3827.0,5.8791581]
[1641216347554,2.82425353,3827.1,3827.0,5.8791581]
[1641216347954,2.6135389,3827.1,3827.0,5.8791581]
[1641216348162,0.65336,3827.2,3827.0,5.8791581]
[1641216348354,5.14104285,3827.1,3827.0,5.8791581]
[1641216348558,5.16910678,3827.1,3827.0,5.8791581]
[1641216349162,5.19560514,3827.1,3827.0,5.8791581]
[1641216349360,2.55,3827.1,3827.0,5.8791581]
[1641216349559,5.15123571,3827.1,3827.0,5.8791581]
[1641216349802,2.60123571,3827.1,3827.0,5.8791581]
[1641216350006,6.23353884,3827.1,3827.0,5.8791581]
[1641216350205,6.23353884,3827.1,3827.0,5.2258]
[1641216350609,3.23693884,3827.1,3827.0,5.2258]
[1641216351807,3.53693884,3827.1,3827.0,5.2258]
[1641216353554,2.88353884,3827.1,3827.0,5.2258]
[1641216354665,0.3,3827.1,3827.0,5.2258]
[1641216354864,0.65336,3827.2,3827.0,5.2258]
[1641216355765,0.66362548,3827.2,3827.0,5.2258]
[1641216361048,2.61526306,3827.1,3827.0,5.2258]
[1641216361259,3.33185061,3827.1,3827.0,5.2258]
[1641216362255,0.73529124,3827.1,3827.0,5.2258]
[1641216366712,3.34941704,3827.1,3827.0,5.2258]
[1641216367913,0.73529124,3827.1,3827.0,5.2258]
[1641216368568,0.73529124,3827.1,3827.0,8.27533482]
[1641216368760,0.73529124,3827.1,3827.0,5.2258]
[1641216368961,9.124e-05,3827.1,3827.0,7.9758]
[1641216369862,0.01026548,3827.2,3827.0,5.87896]
[1641216371262,0.01026548,3827.2,3827.0,7.1852573]
[1641216371465,0.01026548,3827.2,3827.0,7.4852573]
[1641216371868,0.01026548,3827.2,3827.1,8.23818273]
[1641216372311,0.01026548,3827.2,3827.1,2.73818273]
[1641216372515,0.01026548,3827.2,3827.0,7.4852573]
[1641216373516,0.01026548,3827.2,3827.1,11.26455977]
[1641216373719,0.01026548,3827.2,3827.1,4.0509142]
[1641216374619,0.01026548,3827.2,3827.1,6.8509142]
[1641216375619,0.01026548,3827.2,3827.1,12.0768142]
[1641216375823,0.01026548,3827.2,3827.1,9.2768142]
[1641216376255,0.01026548,3827.2,3827.1,6.51225443]
[1641216376457,0.01026548,3827.2,3827.1,5.2259]
[1641216389218,0.71197409,3827.2,3827.1,7.43154438]
[1641216390021,0.71197409,3827.2,3827.1,8.73166018]
[1641216391464,0.71197409,3827.2,3827.1,11.48102896]
[1641216391657,0.71197409,3827.2,3827.1,11.78102896]
[1641216391854,0.71197409,3827.2,3827.1,11.48102896]
[1641216392055,0.01026548,3827.2,3827.1,11.9069559]
[1641216392457,0.01026548,3827.2,3827.1,9.15758712]
[1641216394660,0.01026548,3827.2,3827.1,7.43154438]
[1641216396615,0.7427419,3827.2,3827.1,7.43154438]
[1641216397014,0.01026548,3827.2,3827.1,7.43154438]
[1641216403716,1.0328354,3828.1,3827.2,7.8]
[1641216403917,0.105359,3828.3,3827.5,0.653119]
[1641216404114,0.00454739,3828.0,3827.5,0.653119]
[1641216404314,0.00454739,3828.0,3827.4,1.9593579]
[1641216404516,0.00397897,3827.9,3827.4,0.65312]
[1641216404816,0.00341054,3827.8,3827.4,0.65312]
[1641216405216,0.00284212,3827.7,3827.5,2.20564438]
[1641216405615,0.0022737,3827.6,3827.5,3.51189658]
[1641216406061,0.0022737,3827.6,3827.5,1.3062522]
[1641216415080,0.72938549,3827.7,3827.5,1.3062522]
[1641216415382,0.68165919,3827.7,3827.5,1.3062522]
[1641216415785,0.68165919,3827.7,3827.5,1.28406663]
[1641216415989,0.68165919,3827.7,3827.6,0.00354352]
[1641216416786,0.68165919,3827.7,3827.5,1.23761015]
[1641216418526,1.33493919,3827.7,3827.5,1.23761015]
[1641216419721,0.65328,3827.7,3827.5,1.23761015]
[1641216422773,0.3,3827.8,3827.5,1.23761015]
[1641216423775,24.34877391,3827.8,3827.5,1.23761015]
[1641216423976,0.65338,3827.5,3827.1,5.2259]
[1641216424177,3.58961956,3827.5,3827.1,5.2259]
[1641216424376,4.51532242,3827.5,3827.2,0.0022737]
[1641216424817,1.712108,3827.5,3827.2,0.0022737]
[1641216425012,0.65337,3827.3,3827.2,0.6556467]
[1641216425410,0.65337,3827.3,3827.2,0.653373]
[1641216427421,3.57225236,3827.3,3827.2,0.653373]
[1641216427618,0.65337,3827.3,3827.2,0.653373]
[1641216428872,0.95337,3827.4,3827.2,0.653373]
[1641216429270,0.95337,3827.4,3827.3,0.00170527]
[1641216435318,1.6818633,3827.4,3827.3,2.17983258]
[1641216436866,1.6818633,3827.4,3827.3,10.38922472]
[1641216437264,1.6818633,3827.4,3827.3,7.67983258]
[1641216437467,1.6818633,3827.4,3827.3,2.17983258]
[1641216437870,0.95337,3827.4,3827.3,2.17983258]
[1641216438969,1.68145477,3827.4,3827.3,2.17983258]
[1641216444567,1.38145477,3827.4,3827.3,2.17983258]
[1641216445772,1.68145477,3827.4,3827.3,2.17983258]
[1641216459169,1.68145477,3827.4,3827.3,2.17812731]
[1641216463529,1.68145477,3827.4,3827.3,2.07812731]
[1641216467478,1.63145477,3827.4,3827.3,2.07812731]
[1641216475684,2.71215996,3828.1,3827.3,2.07812731]
[1641216475685,0.40187477,3828.2,3827.5,9.25]
[1641216475985,9.17332207,3828.7,3828.4,9.69295084]
[1641216475986,6.56033207,3828.7,3828.4,9.69295084]
[1641216476186,6.56033207,3828.7,3828.5,12.59279396]
[1641216476187,2.66653207,3828.7,3828.5,12.59279396]
[1641216476382,2.66653207,3828.7,3828.6,3.65]
[1641216476383,1.38489249,3828.7,3828.6,3.65]
[1641216476583,1.38489249,3828.7,3828.6,8.8738]
[1641216476782,1.49650414,3828.7,3828.6,13.22318718]
[1641216476984,0.00625265,3828.7,3828.6,13.22318718]
[1641216477184,0.00625265,3828.7,3828.6,10.26139322]
[1641216477425,0.00625265,3828.7,3828.6,10.91426322]
[1641216478028,3.55896686,3829.3,3828.6,10.91426322]
[1641216478326,0.00284212,3829.2,3828.8,1.3057151]
[1641216478524,0.00284212,3829.2,3829.1,7.65286]
[1641216478726,0.0611362,3829.3,3829.1,12.87606]
[1641216478926,0.0611362,3829.3,3829.2,6.45]
[1641216479127,0.0611362,3829.3,3829.2,12.3223]
[1641216479326,0.00341055,3829.3,3829.2,12.3223]
[1641216480631,0.00341055,3829.3,3829.2,6.2533]
[1641216480829,0.00341055,3829.3,3829.2,5.604]
[1641216481288,0.05876955,3829.5,3829.3,5.25]
[1641216481488,0.05876955,3829.5,3829.4,5.2228]
[1641216481888,0.05990639,3829.5,3829.4,5.2228]
[1641216500034,0.35990639,3829.5,3829.4,5.2228]
[1641216500221,0.05990639,3829.5,3829.4,5.2228]
[1641216501824,0.35990639,3829.5,3829.4,5.2228]
[1641216502729,0.05990639,3829.5,3829.4,5.2228]
[1641216503329,0.35990639,3829.5,3829.4,5.2228]
[1641216505782,0.35990639,3829.5,3829.4,5.4836]
[1641216506985,0.35990639,3829.5,3829.4,8.44986]
[1641216511868,0.35876955,3829.5,3829.4,8.44986]
[1641216512772,0.35876955,3829.5,3829.4,8.74986]
[1641216513573,0.35876955,3829.5,3829.4,8.44986]
[1641216513772,0.35876955,3829.5,3829.4,8.74986]
[1641216515224,0.05876955,3829.5,3829.4,8.74986]
[1641216516026,0.05876955,3829.5,3829.4,8.44986]
[1641216516829,0.05876955,3829.5,3829.4,8.74986]
[1641216517025,0.05876955,3829.5,3829.4,11.3890746]
[1641216519375,0.05876955,3829.5,3829.4,11.36277168]
[1641216520082,0.05876955,3829.5,3829.4,11.37008675]
[1641216521078,0.05876955,3829.5,3829.4,8.74986]
[1641216522180,0.05876955,3829.5,3829.4,8.44986]
[1641216535291,0.05876955,3829.5,3829.4,8.74986]
[1641216535890,0.05876955,3829.5,3829.4,8.44986]
[1641216539937,0.05876955,3829.5,3829.4,9.745613]
[1641216541880,0.05876955,3829.5,3829.4,8.44986]
[1641216557790,0.16412855,3829.5,3829.4,8.44986]
[1641216557991,0.105359,3829.5,3829.4,8.44986]
[1641216558191,0.105359,3829.5,3829.4,10.4083405]
[1641216560233,0.105359,3829.5,3829.4,11.7040935]
[1641216561932,0.105359,3829.5,3829.4,10.4083405]
[1641216562540,0.105359,3829.5,3829.4,10.7083405]
[1641216563441,0.105359,3829.5,3829.4,10.4083405]
[1641216567734,0.105359,3829.5,3829.4,11.70376958]
[1641216568335,0.95286,3829.6,3829.4,11.70376958]
[1641216569133,0.95286,3829.6,3829.5,2.96626]
[1641216569335,0.95286,3829.6,3829.5,8.18886]
[1641216569533,0.95456527,3829.6,3829.5,8.18886]
[1641216569732,0.94798088,3829.6,3829.5,8.18886]
[1641216570132,0.94798088,3829.6,3829.5,8.44966]
[1641216584733,0.94798088,3829.6,3829.5,9.74508908]
[1641216585337,2.85729621,3829.6,3829.5,9.71208908]
[1641216585634,3.09399621,3829.6,3829.5,9.71208908]
[1641216585834,3.09399621,3829.6,3829.5,9.69888908]
[1641216586086,3.09399621,3829.6,3829.4,1.3056505]
[1641216586487,0.00113684,3829.5,3829.4,1.3056505]
[1641216586686,2.50969067,3829.5,3829.4,1.3056505]
[1641216586989,2.50969067,3829.5,3829.4,6.5283505]
[1641216587592,0.00113684,3829.5,3829.4,6.5283505]
[1641216588089,2.50269229,3829.5,3829.4,6.5283505]
[1641216589091,0.00113684,3829.5,3829.4,6.5283505]
[1641216589291,2.59039625,3829.5,3829.4,6.5283505]
[1641216589692,0.00113684,3829.5,3829.4,6.5283505]
[1641216589945,2.53153547,3829.5,3829.4,6.5283505]
[1641216590345,2.50164662,3829.5,3829.4,6.5283505]
[1641216590548,0.00113684,3829.5,3829.4,6.5283505]
[1641216591950,0.00113684,3829.5,3829.4,6.5233505]
[1641216597634,2.50788571,3829.5,3829.4,6.5233505]
[1641216597836,0.00113684,3829.5,3829.4,6.5233505]
[1641216598836,2.51872129,3829.5,3829.4,6.5233505]
[1641216599436,0.00113684,3829.5,3829.4,6.5233505]
[1641216603495,0.00113684,3829.5,3829.4,6.8233505]
[1641216604945,0.00113684,3829.5,3829.4,8.12035645]
[1641216605545,0.00113684,3829.5,3829.4,6.8233505]
[1641216606048,0.95291,3829.6,3829.4,6.8233505]
[1641216606446,0.00113684,3829.5,3829.4,6.8233505]
[1641216608149,0.14944487,3829.5,3829.4,6.8233505]
[1641216609376,0.14944487,3829.5,3829.4,6.85154414]
[1641216609978,0.14944487,3829.5,3829.4,6.55154414]
[1641216619847,0.14944487,3829.5,3829.4,6.85154414]
[1641216621147,0.14944487,3829.5,3829.4,6.85838845]
[1641216622553,0.14944487,3829.5,3829.4,10.98690324]
[1641216622752,0.14944487,3829.5,3829.4,10.68690324]
[1641216623053,0.14944487,3829.5,3829.4,9.38332706]
[1641216623688,0.00113684,3829.5,3829.4,9.38332706]
[1641216623893,0.00113684,3829.5,3829.4,9.68332706]
[1641216624594,0.00113684,3829.5,3829.4,9.71710763]
[1641216626198,0.00113684,3829.5,3829.4,9.68332706]
[1641216627456,0.14947895,3829.5,3829.4,10.98786492]
[1641216628156,0.14947895,3829.5,3829.4,9.68332706]
[1641216629155,0.14947895,3829.5,3829.4,10.98769684]
[1641216630157,0.14947895,3829.5,3829.4,11.02248246]
[1641216630358,0.00113684,3829.5,3829.4,9.71811268]
[1641216630960,0.14947836,3829.5,3829.4,11.02298534]
[1641216632302,0.14947836,3829.5,3829.4,9.71811268]
[1641216632907,0.758178,3829.7,3829.4,10.37487467]
[1641216633107,0.758178,3829.7,3829.5,0.65276]
[1641216633307,0.758178,3829.7,3829.6,5.2225]
[1641216633507,0.758178,3829.7,3829.6,5.25069364]
[1641216633713,0.75931485,3829.7,3829.6,5.25069364]
[1641216634310,1.05931485,3829.7,3829.6,5.25069364]
[1641216635157,1.05931485,3829.7,3829.6,6.5555663]
[1641216638461,1.1215062,3829.7,3829.6,6.5555663]
[1641216642345,1.1215062,3829.7,3829.6,6.5563663]
[1641216643351,0.4686862,3829.7,3829.6,6.5563663]
[1641216643551,0.1686862,3829.7,3829.6,6.5563663]
[1641216644953,0.1686862,3829.7,3829.6,5.25149364]
[1641216645761,0.1686862,3829.7,3829.6,6.5590498]
[1641216646798,0.1686862,3829.7,3829.6,6.5598498]
[1641216647901,0.00113685,3829.7,3829.6,11.5408498]
[1641216648100,0.00113685,3829.7,3829.6,6.9408498]
[1641216648499,2.92734648,3830.5,3830.1,0.65263]
[1641216648701,0.06113466,3830.5,3830.1,0.65263]
[1641216649008,0.00397896,3830.4,3830.1,0.95263]
[1641216649200,0.00397896,3830.4,3830.3,0.02819364]
[1641216649404,0.65263,3830.5,3830.3,0.02819364]
[1641216649854,0.65263,3830.5,3830.3,0.32819364]
[1641216651557,0.65263,3830.5,3830.3,0.02819364]
[1641216651756,2.51552919,3830.4,3830.3,0.335052]
[1641216652762,0.95263,3830.5,3830.3,0.335052]
[1641216652965,0.95263,3830.5,3830.3,0.036652]
[1641216653165,2.52442434,3830.4,3830.3,0.036652]
[1641216653597,2.67275028,3830.4,3830.3,0.036652]
[1641216653998,0.95263,3830.5,3830.3,0.036652]
[1641216654200,0.95263,3830.5,3830.3,0.00845836]
[1641216654401,2.514156,3830.4,3830.3,0.00845836]
[1641216655602,2.52590795,3830.4,3830.3,0.00845836]
[1641216656003,0.95263,3830.5,3830.3,0.00845836]
[1641216656605,1.00237035,3830.5,3830.3,0.00845836]
[1641216656803,2.47767941,3830.4,3830.3,0.00845836]
[1641216657004,2.52149543,3830.4,3830.3,0.00845836]
[1641216659547,2.52149543,3830.4,3830.3,0.036652]
[1641216662605,2.6,3830.4,3830.3,0.036652]
[1641216663808,2.705359,3830.4,3830.3,0.036652]
[1641216666352,5.21949528,3830.4,3830.3,0.036652]
[1641216668154,6.99912792,3830.4,3830.3,0.036652]
[1641216668796,5.21949528,3830.4,3830.3,0.029852]
[1641216669398,9.66949528,3830.4,3830.3,0.02979364]
[1641216669598,12.99181423,3830.4,3830.3,0.02979364]
[1641216669795,5.0,3830.3,3830.0,0.6528536]
[1641216669999,2.68434294,3830.2,3830.0,0.6528536]
[1641216670203,2.68718506,3830.2,3830.0,0.6528536]
[1641216670398,0.30227369,3830.1,3829.6,6.5282071]
[1641216670601,2.56311892,3830.0,3829.6,6.5282071]
[1641216670804,2.56482419,3830.0,3829.6,6.5282071]
[1641216671001,0.00113685,3829.9,3829.6,5.2225]
[1641216671202,0.65410685,3829.9,3829.6,5.2225]